bitfinex-derivatives/quotes_ETHF0:USTF0_20250727
["timestamp","ask_amount","ask_price","bid_price","bid_amount"]
[1753579065191,1.6389,3773.1,3773.0,4.97589]
[1753579065392,0.4813,3773.1,3773.0,4.97589]
[1753579065594,0.4813,3773.4,3773.3,1.76805]
[1753579065798,0.16865803,3773.5,3773.4,1.76804]
[1753579066098,0.16865803,3773.5,3773.4,4.97584]
[1753579066397,0.16865803,3773.5,3773.4,9.97584]
[1753579067397,0.16865803,3773.5,3773.4,4.97584]
[1753579068097,1.50575803,3773.5,3773.4,4.97584]
[1753579068395,1.50575803,3773.5,3773.4,4.446]
[1753579068602,2.33737803,3773.5,3773.4,3.5146]
[1753579068898,2.33737803,3773.5,3773.4,3.2078]
[1753579069688,23.80637803,3773.5,3773.4,3.2078]
[1753579069888,23.80637803,3773.5,3773.4,3.5146]
[1753579070293,23.80637803,3773.5,3773.4,3.2078]
[1753579070491,2.33737803,3773.5,3773.4,3.2078]
[1753579070892,23.80137803,3773.5,3773.4,3.2078]
[1753579071703,23.27155803,3773.5,3773.4,3.2078]
[1753579071897,1.80755803,3773.5,3773.4,4.446]
[1753579072203,22.96175803,3773.5,3773.4,4.446]
[1753579072404,23.26355803,3773.5,3773.4,4.446]
[1753579072896,22.96075803,3773.5,3773.4,4.97584]
[1753579073294,22.96075803,3773.5,3773.4,4.446]
[1753579073503,22.96075803,3773.5,3773.4,4.97584]
[1753579074103,23.26255803,3773.5,3773.4,4.97584]
[1753579074406,23.26255803,3773.5,3773.4,4.446]
[1753579074699,1.80755803,3773.5,3773.4,4.97584]
[1753579075003,23.24955803,3773.5,3773.4,4.446]
[1753579075399,23.24955803,3773.5,3773.4,4.97584]
[1753579076605,23.24955803,3773.5,3773.4,4.446]
[1753579076806,23.24955803,3773.5,3773.4,4.97584]
[1753579077106,23.24955803,3773.5,3773.4,4.446]
[1753579077702,0.52987,3773.2,3773.0,3.2078]
[1753579078007,2.15038,3773.1,3773.0,3.2078]
[1753579078206,2.15038,3773.1,3773.0,2.5342]
[1753579078398,2.15038,3773.1,3772.2,4.0447]
[1753579078399,0.4799,3772.3,3772.2,4.0447]
[1753579078598,0.4799,3772.8,3772.7,2.26133]
[1753579078809,21.6351,3772.8,3772.7,2.26133]
[1753579079004,0.4799,3773.1,3773.0,1.96428]
[1753579079209,0.4799,3773.1,3773.0,5.46908]
[1753579079210,21.9259,3773.1,3773.0,5.46908]
[1753579079403,21.9259,3773.1,3773.0,4.9392]
[1753579079609,21.9259,3773.1,3773.0,4.6384]
[1753579080210,21.9329,3773.1,3773.0,4.6384]
[1753579080402,22.46278,3773.1,3772.8,0.52992]
[1753579080605,1.00985,3772.6,3772.5,3.2078]
[1753579081001,22.46385,3772.6,3772.5,3.2078]
[1753579081710,0.4799,3772.4,3772.3,0.3069]
[1753579081910,0.4799,3772.4,3772.3,0.495]
[1753579082509,1.00988,3772.4,3772.3,0.495]
[1753579082708,1.00988,3772.4,3772.3,0.3069]
[1753579082910,0.4799,3772.2,3772.1,0.3069]
[1753579083106,0.4799,3772.2,3772.1,1.75902]
[1753579083308,21.9369,3772.2,3772.1,2.26142]
[1753579083713,21.9369,3772.2,3772.1,0.792]
[1753579084310,21.9369,3772.2,3771.8,0.437]
[1753579084311,0.72718,3771.7,3771.6,3.2078]
[1753579084509,0.4799,3770.7,3770.6,2.26163]
[1753579084709,21.9559,3770.7,3770.6,2.26163]
[1753579085214,21.9559,3770.7,3770.6,0.792]
[1753579085513,21.9559,3770.7,3770.6,1.229]
[1753579085713,22.48612,3770.7,3770.6,1.229]
[1753579085911,22.48612,3770.7,3770.6,0.3069]
[1753579086102,0.7274,3770.1,3770.0,0.3069]
[1753579086305,0.4799,3770.1,3770.0,0.792]
[1753579086502,0.2828,3770.6,3770.1,1.0447]
[1753579086706,0.4799,3770.5,3770.4,1.7314]
[1753579086908,0.4799,3770.5,3770.4,1.4306]
[1753579087116,0.4799,3770.5,3770.4,1.7314]
[1753579087416,0.4799,3770.5,3770.4,2.26166]
[1753579087913,0.4799,3770.5,3770.4,1.4306]
[1753579088310,0.72735,3770.5,3770.4,1.229]
[1753579088510,0.4799,3770.5,3770.4,1.229]
[1753579088712,0.4799,3770.5,3769.9,3.2078]
[1753579088918,0.4799,3770.1,3770.0,1.7314]
[1753579089217,0.4799,3770.1,3770.0,2.26172]
[1753579089518,0.1971,3770.1,3770.0,2.26172]
[1753579089817,0.4799,3770.4,3770.3,0.53027]
[1753579090020,22.0459,3770.4,3770.3,2.26167]
[1753579090217,22.0449,3770.4,3770.3,2.26167]
[1753579090714,22.0449,3770.4,3770.3,1.0409]
[1753579090909,0.4799,3770.4,3770.3,1.75927]
[1753579091115,0.4799,3770.4,3770.3,2.26167]
[1753579091314,22.0589,3770.4,3770.3,1.4306]
[1753579091514,22.0589,3770.4,3770.3,1.229]
[1753579092016,22.0589,3770.4,3770.3,1.75927]
[1753579092217,22.0589,3770.4,3770.3,2.26167]
[1753579092218,0.4799,3770.4,3770.3,2.26167]
[1753579092414,22.0619,3770.4,3770.3,2.26167]
[1753579093313,0.4799,3770.4,3770.3,2.26167]
[1753579093619,0.4799,3770.9,3770.8,2.2616]
[1753579093819,22.0559,3770.9,3770.8,2.2616]
[1753579094014,0.4799,3770.9,3770.8,2.2616]
[1753579094214,3.2078,3771.4,3770.3,3.2078]
[1753579094215,0.4799,3771.3,3771.2,2.26155]
[1753579094415,22.58903,3771.3,3771.1,0.53016]
[1753579094719,0.4799,3771.0,3770.9,1.75919]
[1753579095014,0.4799,3771.0,3770.9,0.83709]
[1753579095216,0.4799,3771.0,3770.9,0.3069]
[1753579095414,0.4799,3771.0,3770.9,1.32219]
[1753579095614,22.0869,3771.0,3770.9,2.26159]
[1753579096415,22.0869,3771.0,3770.9,1.96079]
[1753579096713,22.0869,3771.0,3770.9,1.75919]
[1753579097315,22.61708,3771.0,3770.9,1.75919]
[1753579097519,22.61708,3771.0,3770.9,1.229]
[1753579097818,22.61708,3771.0,3770.9,1.75919]
[1753579098116,22.62245022,3771.0,3770.9,1.75919]
[1753579098318,22.09227022,3771.0,3770.9,1.75919]
[1753579098517,22.62365022,3771.0,3770.9,0.792]
[1753579099218,22.62365022,3771.0,3770.9,1.229]
[1753579099420,22.09347022,3771.0,3770.9,1.96079]
[1753579099621,22.09227022,3771.0,3770.9,2.26159]
[1753579099826,0.48527022,3771.0,3770.9,2.26159]
[1753579100017,22.07127022,3771.0,3770.9,2.26159]
[1753579100420,0.48527022,3771.0,3770.9,2.26159]
[1753579100622,0.00537022,3771.0,3770.9,2.26159]
[1753579102522,21.577,3771.5,3771.4,2.26152]
[1753579103119,0.4799,3771.7,3771.6,1.96448]
[1753579103321,22.0559,3771.7,3771.6,2.26148]
[1753579103519,0.4799,3771.7,3771.6,2.26148]
[1753579103715,21.7681,3771.9,3771.8,1.21676]
[1753579103917,0.1971,3771.9,3771.8,2.26146]
[1753579104222,0.4799,3771.9,3771.8,2.26146]
[1753579104812,0.2828,3772.2,3771.8,2.26146]
[1753579105012,0.4799,3772.2,3772.1,2.26142]
[1753579106522,0.486,3772.2,3772.1,2.26142]
[1753579106823,0.73776,3771.8,3771.7,1.27398]
[1753579107129,1.02666,3771.8,3771.7,0.83698]
[1753579107334,0.4966,3771.8,3771.7,0.83698]
[1753579107627,0.4966,3771.8,3771.7,1.02508]
[1753579107822,0.4966,3771.8,3771.7,1.32208]
[1753579108029,0.4799,3771.8,3771.7,2.24378]
[1753579108616,0.4895,3772.1,3772.0,0.73243]
[1753579108823,22.0435,3772.1,3772.0,1.7288]
[1753579109224,1.02462,3772.1,3772.0,1.7288]
[1753579109824,1.03282,3772.1,3772.0,1.4397]
[1753579110129,0.5028,3772.1,3772.0,1.96973]
[1753579110726,0.4895,3772.1,3772.0,2.25883]
[1753579111422,1.01952,3772.1,3772.0,1.7288]
[1753579111628,1.03282,3772.1,3772.0,1.7288]
[1753579111828,1.03282,3772.1,3772.0,1.4397]
[1753579112022,1.03282,3772.1,3772.0,0.3]
[1753579112928,0.74279,3771.6,3771.5,1.2461]
[1753579113125,1.03289,3771.6,3771.5,0.3]
[1753579113321,1.03295,3771.2,3771.1,2.3365]
[1753579113531,0.73777,3771.1,3771.0,0.5151]
[1753579113825,0.2076,3771.1,3771.0,1.34528]
[1753579114021,0.73776,3771.1,3771.0,1.77628]
[1753579114226,1.03296,3771.1,3771.0,1.77628]
[1753579114627,0.5028,3771.1,3771.0,1.77628]
[1753579115226,0.5028,3771.1,3771.0,1.96988]
[1753579115424,0.1994,3771.1,3771.0,2.25898]
[1753579115624,21.554,3771.3,3771.2,2.25893]
[1753579115824,22.0325,3771.7,3771.6,2.25888]
[1753579116029,0.4895,3771.7,3771.6,2.25888]
[1753579117126,0.1994,3771.9,3771.8,0.53006]
[1753579117327,22.56256,3771.9,3771.8,1.7288]
[1753579117827,22.57586,3771.9,3771.8,1.7288]
[1753579118328,22.0458,3771.9,3771.8,2.25886]
[1753579118526,22.0376,3771.9,3771.8,2.25886]
[1753579119025,22.0295,3771.9,3771.8,2.25886]
[1753579119534,22.55955,3771.9,3771.8,2.25886]
[1753579119729,22.0295,3771.9,3771.8,2.25886]
[1753579120033,22.0346,3771.9,3771.8,2.25886]
[1753579120434,22.0428,3771.9,3771.8,2.25886]
[1753579120932,22.57285,3771.9,3771.8,1.7288]
[1753579121629,22.57285,3771.9,3771.8,2.25886]
[1753579122529,0.5028,3771.9,3771.8,2.25886]
[1753579123732,0.5028,3771.9,3771.8,1.7288]
[1753579124533,0.5028,3771.9,3771.8,2.25886]
[1753579124831,0.1994,3771.9,3771.8,2.25886]
[1753579125028,0.0051,3772.2,3772.1,2.25882]
[1753579125029,0.4946,3772.2,3772.1,2.25882]
[1753579125423,21.9885,3772.2,3772.1,2.25882]
[1753579125829,0.4895,3772.2,3772.1,2.25882]
[1753579126029,21.9845,3772.5,3772.4,2.25878]
[1753579127534,0.4895,3772.5,3772.4,2.25878]
[1753579128336,1.03272,3772.8,3772.7,2.25874]
[1753579128636,21.9938,3772.8,3772.7,2.25874]
[1753579129322,0.82002,3772.8,3772.7,2.25874]
[1753579129525,0.5028,3772.8,3772.7,1.96964]
[1753579129729,0.5028,3772.8,3772.7,1.4397]
[1753579129934,0.5028,3772.8,3772.7,1.96964]
[1753579131027,0.5028,3772.8,3772.7,2.25874]
[1753579131228,0.4895,3772.8,3772.7,2.25874]
[1753579132837,0.1994,3772.8,3772.7,2.25874]
[1753579133037,21.9616,3773.1,3773.0,2.25869]
[1753579133438,0.5028,3773.1,3773.0,2.25869]
[1753579134235,0.5028,3773.1,3773.0,1.4397]
[1753579134638,0.5028,3773.1,3773.0,1.2461]
[1753579135740,0.1994,3772.4,3772.3,0.6851]
[1753579136034,0.5028,3772.4,3772.3,1.66969]
[1753579136438,0.5028,3772.4,3772.3,1.96969]
[1753579136638,0.5028,3772.4,3772.3,1.7288]
[1753579136834,0.5028,3772.4,3772.3,1.96969]
[1753579137351,0.5028,3772.4,3772.3,1.4397]
[1753579137541,1.03278,3772.4,3772.3,0.8151]
[1753579137747,0.73632,3772.1,3772.0,2.3365]
[1753579137953,1.02982,3772.1,3772.0,0.4928]
[1753579138147,1.02982,3772.1,3772.0,0.8035]
[1753579138450,1.02982,3772.1,3772.0,1.242]
[1753579139651,0.4998,3772.1,3772.0,1.77203]
[1753579140255,0.4998,3772.1,3772.0,1.242]
[1753579140657,0.4998,3772.1,3772.0,1.77203]
[1753579140953,0.4998,3772.1,3772.0,2.25543]
[1753579141255,0.4998,3772.1,3772.0,1.242]
[1753579141452,1.02982,3772.1,3772.0,0.4928]
[1753579141657,22.47182,3772.1,3772.0,1.242]
[1753579142051,21.9418,3772.1,3772.0,1.242]
[1753579142256,0.4998,3772.1,3772.0,1.242]
[1753579142455,21.9388,3772.1,3772.0,1.77203]
[1753579142657,21.9388,3772.1,3772.0,2.25543]
[1753579143554,21.9251,3772.1,3772.0,2.25543]
[1753579144056,0.4861,3772.1,3772.0,2.25543]
[1753579144955,0.4914,3772.1,3772.0,2.25543]
[1753579145157,21.9258,3772.1,3772.0,2.25543]
[1753579145350,0.4998,3772.1,3772.0,4.59193]
[1753579145556,0.4998,3772.1,3772.0,2.25543]
[1753579149259,0.4861,3772.1,3772.0,2.25543]
[1753579149858,3.4057,3772.6,3772.5,0.52996]
[1753579150161,25.0999,3772.6,3772.5,2.25536]
[1753579150551,25.1019,3772.6,3772.5,2.25536]
[1753579150954,25.1062,3772.6,3772.5,2.25536]
[1753579151162,25.64455,3772.6,3772.5,1.7254]
[1753579151464,25.64255,3772.6,3772.5,1.96016]
[1753579151660,25.64255,3772.6,3772.5,1.4302]
[1753579152164,25.1126,3772.6,3772.5,1.96016]
[1753579152459,25.1126,3772.6,3772.5,1.4302]
[1753579152660,25.64255,3772.6,3772.5,1.4302]
[1753579152862,0.2063,3772.2,3772.1,0.1956]
[1753579153062,21.9018,3772.2,3772.1,0.4928]
[1753579153465,21.9018,3772.2,3772.1,0.8035]
[1753579153664,21.9018,3772.2,3772.1,1.33352]
[1753579153963,22.43181,3772.2,3772.1,1.242]
[1753579154163,21.9018,3772.2,3772.1,1.77202]
[1753579154366,21.9018,3772.2,3772.1,1.96022]
[1753579154664,21.9018,3772.2,3772.1,2.25542]
[1753579155055,22.43181,3772.2,3772.1,2.25542]
[1753579155359,0.4861,3772.2,3772.1,2.25542]
[1753579155560,21.401,3772.2,3772.1,2.25542]
[1753579155761,0.2882,3772.4,3772.3,2.25539]
[1753579155972,21.403,3772.4,3772.3,2.25539]
[1753579156464,3.4057,3772.6,3772.5,0.52996]
[1753579156667,25.0939,3772.6,3772.5,2.25536]
[1753579156870,25.62385,3772.6,3772.5,1.7254]
[1753579157068,25.63755,3772.6,3772.5,1.7254]
[1753579157370,25.63355,3772.6,3772.5,1.4302]
[1753579158168,25.63355,3772.6,3772.2,2.6317]
[1753579158169,0.73629,3772.3,3772.2,0.2972]
[1753579158365,1.02979,3772.3,3772.2,0.2972]
[1753579160270,1.02982,3772.1,3772.0,2.3365]
[1753579160471,1.02983,3772.0,3771.9,2.3365]
[1753579160667,0.73635,3771.9,3771.8,2.3365]
[1753579160971,0.53009,3771.6,3771.5,2.3312]
[1753579161279,0.728,3771.5,3771.4,0.2972]
[1753579161473,1.0162,3771.5,3771.4,0.2972]
[1753579161874,1.0162,3771.5,3771.4,0.8035]
[1753579162172,1.0162,3771.5,3771.4,1.242]
[1753579163276,21.394,3771.5,3771.4,2.25552]
[1753579163975,21.8801,3771.5,3771.4,1.7254]
[1753579164274,22.4102,3771.5,3771.4,1.7254]
[1753579164469,22.4111,3771.5,3771.4,0.9313]
[1753579164672,0.2882,3771.4,3770.9,0.4928]
[1753579164877,0.487,3771.1,3771.0,2.25557]
[1753579165075,21.894,3771.1,3771.0,2.25557]
[1753579165972,21.8931,3771.1,3771.0,2.25557]
[1753579166169,0.4861,3771.7,3771.6,1.22459]
[1753579166474,21.8891,3771.7,3771.6,2.25549]
[1753579166876,0.4861,3771.7,3771.6,2.25549]
[1753579167576,21.8881,3771.7,3771.6,2.25549]
[1753579167764,21.8871,3771.7,3771.6,2.25549]
[1753579170967,21.888,3771.7,3771.6,1.242]
[1753579171169,1.01106,3771.1,3771.0,3.08586053]
[1753579171472,0.4809,3771.0,3770.9,0.72728]
[1753579171675,0.1951,3771.0,3770.9,1.31508]
[1753579171877,1.01107,3771.0,3770.9,0.7849]
[1753579172574,0.4809,3771.0,3770.9,1.2208]
[1753579172767,0.4809,3771.0,3770.9,2.23999]
[1753579173081,0.48,3771.0,3770.9,2.23999]
[1753579173283,21.391,3771.0,3770.9,4.59665053]
[1753579173777,0.81594,3771.3,3770.9,4.59665053]
[1753579173778,0.1942,3771.3,3771.2,2.23995]
[1753579173970,21.5842,3771.3,3771.2,2.23995]
[1753579174472,21.87,3771.3,3771.2,2.23995]
[1753579174873,3.402,3771.7,3771.6,2.23989]
[1753579175073,25.32208,3771.7,3771.6,1.7098]
[1753579175474,25.60878,3771.7,3771.6,1.7098]
[1753579175776,4.21878,3771.7,3771.6,1.72091618]
[1753579176082,25.60278,3771.7,3771.6,2.25100618]
[1753579176374,3.6887,3771.7,3771.6,2.25100618]
[1753579176580,21.862,3771.7,3771.6,2.25100618]
[1753579176769,3.4029,3772.1,3772.0,0.53003]
[1753579176972,3.4029,3772.1,3772.0,2.23983]
[1753579177184,3.402,3772.1,3772.0,2.23983]
[1753579177385,25.0688,3772.1,3772.0,2.23983]
[1753579177972,3.6878,3772.1,3772.0,2.25094618]
[1753579178786,4.21872,3772.1,3772.0,0.30561618]
[1753579179981,25.63072,3772.1,3772.0,0.30561618]
[1753579180382,4.21872,3772.1,3772.0,0.30561618]
[1753579180588,25.62772,3772.1,3772.0,0.30561618]
[1753579180878,3.6887,3772.1,3772.0,0.50271618]
[1753579181084,3.6887,3772.1,3772.0,1.23191618]
[1753579181085,22.41792,3772.1,3772.0,1.23191618]
[1753579181775,21.8879,3772.1,3772.0,1.23191618]
[1753579181972,22.41792,3772.1,3772.0,1.23191618]
[1753579182182,1.01092,3772.1,3772.0,1.23191618]
[1753579182383,1.01092,3772.1,3772.0,1.72091618]
[1753579182583,22.41192,3772.1,3772.0,1.72091618]
[1753579182877,1.01092,3772.1,3772.0,1.72091618]
[1753579183082,22.41192,3772.1,3772.0,1.72091618]
[1753579183681,25.61972,3772.1,3772.0,1.72091618]
[1753579183877,25.61972,3772.1,3772.0,1.23191618]
[1753579184083,25.61972,3772.1,3772.0,0.79601618]
[1753579186184,3.6887,3772.1,3772.0,1.72091618]
[1753579186386,25.0748,3772.1,3772.0,1.72091618]
[1753579186584,3.6878,3772.1,3772.0,2.25094618]
[1753579186784,25.0748,3772.1,3772.0,2.25094618]
[1753579186985,3.6878,3772.1,3772.0,2.25094618]
[1753579187186,25.0718,3772.1,3772.0,2.25094618]
[1753579191391,3.6878,3772.1,3772.0,2.25094618]
[1753579191690,21.848,3772.1,3772.0,2.25094618]
[1753579192882,0.48,3772.1,3772.0,2.25094618]
[1753579193185,21.839,3772.1,3772.0,2.25094618]
[1753579195091,21.8399,3772.1,3772.0,2.25094618]
[1753579195486,22.36992,3772.1,3772.0,2.25094618]
[1753579196191,21.8399,3772.1,3772.0,2.25094618]
[1753579201690,21.839,3772.1,3772.0,2.25094618]
[1753579202692,3.69,3772.6,3772.5,1.22826]
[1753579202892,25.56795,3772.6,3772.5,2.29727618]
[1753579203295,25.56695,3772.6,3772.5,0.31911618]
[1753579204000,25.56695,3772.6,3772.5,0.52341618]
[1753579204794,25.037,3772.6,3772.5,1.81887618]
[1753579205097,25.037,3772.6,3772.5,2.29727618]
[1753579205397,25.56695,3772.6,3772.5,1.48371618]
[1753579205598,25.56695,3772.6,3772.5,1.28891618]
[1753579206293,25.56595,3772.6,3772.5,1.28891618]
[1753579206494,25.036,3772.6,3772.5,1.81887618]
[1753579206796,25.036,3772.6,3772.5,2.29727618]
[1753579207688,25.56595,3772.6,3772.5,1.48371618]
[1753579207889,25.56595,3772.6,3772.5,1.28891618]
[1753579208085,4.21995,3772.6,3772.5,1.28891618]
[1753579208293,25.56595,3772.6,3772.5,1.28891618]
[1753579208487,0.2857,3772.9,3772.5,0.70941618]
[1753579208692,3.2078,3773.0,3772.5,0.70941618]
[1753579208693,21.8282,3772.8,3772.7,2.28614]
[1753579208995,22.35812,3772.8,3772.7,1.76731618]
[1753579209293,22.35812,3772.8,3772.7,0.01111618]
[1753579209494,0.4822,3772.2,3772.1,2.66433804]
[1753579209695,1.01222,3772.1,3772.0,2.35633804]
[1753579209897,0.53009,3771.6,3771.5,3.60687326]
[1753579210095,22.35729,3771.6,3771.5,0.308]
[1753579211000,1.01236,3771.1,3771.0,2.35633804]
[1753579211194,0.72669,3770.9,3770.8,2.56063804]
[1753579211392,1.01242,3770.7,3770.6,2.35633804]
[1753579211598,22.35742,3770.7,3770.6,0.308]
[1753579212995,0.4822,3770.3,3770.2,0.83829]
[1753579213188,21.8292,3770.3,3770.2,2.28649]
[1753579213395,21.5435,3770.3,3770.2,2.28649]
[1753579213790,0.4822,3770.6,3770.5,0.6983]
[1753579213995,21.8292,3770.6,3770.5,1.7562]
[1753579214597,22.35943,3770.6,3770.5,1.7562]
[1753579214797,22.35943,3770.6,3770.5,1.4726]
[1753579215196,22.35943,3770.6,3770.5,0.308]
[1753579215603,22.35943,3770.6,3770.5,0.8115]
[1753579215802,22.35943,3770.6,3770.5,1.2778]
[1753579216215,22.35943,3770.6,3770.5,1.4726]
[1753579216511,21.8292,3770.6,3770.5,1.4726]
[1753579216712,22.35943,3770.6,3770.5,1.4726]
[1753579217310,21.8292,3770.6,3770.5,1.4726]
[1753579218617,22.35943,3770.6,3770.5,1.4726]
[1753579218813,22.35943,3770.6,3770.5,1.2778]
[1753579219121,22.35943,3770.6,3770.5,0.308]
[1753579219307,0.1965,3770.3,3770.2,1.29579]
[1753579219510,21.8322,3770.3,3770.2,1.29579]
[1753579219710,21.8322,3770.3,3770.2,1.49059]
[1753579220011,21.8322,3770.3,3770.2,1.77419]
[1753579220315,21.8322,3770.3,3770.2,2.28649]
[1753579226119,22.36247,3770.3,3770.2,2.28649]
[1753579226616,22.36247,3770.3,3770.2,2.00289]
[1753579226923,21.8322,3770.3,3770.2,2.00289]
[1753579227115,21.8322,3770.3,3770.2,2.28649]
[1753579229010,22.36247,3770.3,3770.2,2.28649]
[1753579229214,21.8322,3770.3,3770.2,2.28649]
[1753579230611,22.36247,3770.3,3770.2,1.2778]
[1753579231020,22.36247,3770.3,3770.2,0.308]
[1753579231620,22.36247,3770.3,3770.2,1.32319]
[1753579231917,21.8322,3770.3,3770.2,2.25889]
[1753579232119,0.4822,3770.3,3770.2,2.25889]
[1753579232517,21.8332,3770.3,3770.2,2.25889]
[1753579233120,22.36347,3770.3,3770.2,0.9373]
[1753579233317,22.36347,3770.3,3770.2,1.76339]
[1753579233520,21.8332,3770.3,3770.2,1.76339]
[1753579233925,21.8332,3770.3,3770.2,1.96929]
[1753579234220,22.36347,3770.3,3770.2,2.25889]
[1753579234613,22.36347,3770.3,3770.2,0.7482]
[1753579235015,22.36347,3770.3,3770.2,1.2331]
[1753579236020,22.36347,3770.3,3770.2,0.308]
[1753579236724,22.36347,3770.3,3770.2,1.2331]
[1753579236921,22.36347,3770.3,3770.2,2.25889]
[1753579237522,22.36347,3770.3,3770.2,1.7286]
[1753579237725,21.8332,3770.3,3770.2,1.7286]
[1753579238025,22.36347,3770.3,3770.2,1.7286]
[1753579238526,22.36347,3770.3,3770.2,1.439]
[1753579240027,22.36347,3770.3,3770.2,1.66279971]
[1753579240328,1.01247,3770.3,3770.2,1.66279971]
[1753579240526,22.36247,3770.3,3770.2,1.95239971]
[1753579240827,22.36247,3770.3,3770.2,1.66279971]
[1753579241027,22.36247,3770.3,3770.2,1.95239971]
[1753579241329,22.36247,3770.3,3770.2,1.66279971]
[1753579242030,22.36247,3770.3,3770.2,1.6633032]
[1753579245326,22.36247,3770.3,3770.2,1.9529032]
[1753579248633,22.36247,3770.3,3770.2,1.7286]
[1753579248835,22.36247,3770.3,3770.2,1.9529852]
[1753579249033,25.57027,3770.3,3770.2,0.2243852]
[1753579251336,30.57027,3770.3,3770.2,0.2243852]
[1753579251740,30.0416,3770.3,3770.2,0.22437768]
[1753579251940,30.57187,3770.3,3770.2,0.22437768]
[1753579253734,0.53032,3770.0,3769.9,0.2998]
[1753579254037,22.38202,3770.0,3769.9,0.2998]
[1753579254239,1.03503,3769.9,3769.8,0.19629428]
[1753579254439,4.24283,3769.9,3769.8,0.19629428]
[1753579254638,9.24283,3769.9,3769.8,0.19629428]
[1753579255440,9.24283,3769.9,3769.8,4.28e-06]
[1753579256133,0.53048,3768.8,3768.7,0.2998]
[1753579256332,0.1981,3768.6,3768.5,0.6908]
[1753579256533,1.03521,3768.6,3768.5,0.6908]
[1753579256741,0.72865,3768.3,3768.2,0.50347626]
[1753579257039,22.38225,3768.3,3768.2,1.24347626]
[1753579257235,22.38515,3768.3,3768.2,1.24347626]
[1753579257736,22.38515,3768.3,3768.2,1.44937626]
[1753579258634,22.38515,3768.3,3768.2,1.24347626]
[1753579259035,22.38515,3768.3,3768.2,0.80327626]
[1753579259642,22.38515,3768.3,3768.2,0.31837626]
[1753579259948,22.38635,3768.3,3768.2,0.31837626]
[1753579260243,1.03935,3768.3,3768.2,1.25327626]
[1753579260438,3.2078,3768.4,3768.2,1.76757626]
[1753579260737,39.03196,3769.0,3768.9,0.6875]
[1753579260941,60.38406,3769.0,3768.9,1.7458]
[1753579261141,39.03306,3769.0,3768.9,1.7458]
[1753579261444,60.38296,3769.0,3768.9,1.7458]
[1753579261942,22.38916,3769.0,3768.9,1.7458]
[1753579262441,22.39146,3769.0,3768.9,1.7458]
[1753579263142,22.39246,3769.0,3768.9,1.7458]
[1753579263545,0.3015,3769.0,3768.9,1.7458]
[1753579263740,3.2078,3769.1,3768.9,1.7458]
[1753579263948,38.211,3769.4,3769.3,0.6875]
[1753579264138,21.352,3769.4,3769.3,1.7458]
[1753579264441,22.3901,3769.4,3769.3,1.7458]
[1753579264855,1.0381,3769.4,3769.3,1.7458]
[1753579265142,22.3901,3769.4,3769.3,1.7458]
[1753579266741,22.3891,3769.4,3769.3,1.7458]
[1753579267436,0.5077,3769.4,3769.3,1.7458]
[1753579267642,22.3891,3769.4,3769.3,1.7458]
[1753579268142,22.3902,3769.4,3769.3,1.7458]
[1753579268537,0.5077,3769.4,3769.3,1.7458]
[1753579268745,3.2078,3769.5,3769.4,2.2762]
[1753579268940,24.5588,3769.5,3769.4,2.2762]
[1753579269541,0.3015,3769.8,3769.7,1.21786]
[1753579269740,21.6515,3769.8,3769.7,1.7458]
[1753579270042,38.21,3770.0,3769.8,1.7458]
[1753579270245,38.21,3770.0,3769.9,2.27613]
[1753579270642,38.21,3770.0,3769.5,4.53377]
[1753579270643,0.83175,3770.5,3770.4,1.7458]
[1753579270846,22.38795,3770.5,3770.4,1.7458]
[1753579271546,22.38905,3770.5,3770.4,1.7458]
[1753579271749,22.38795,3770.5,3770.4,1.7458]
[1753579272143,21.348,3770.5,3770.4,1.7458]
[1753579272748,22.17975,3770.5,3770.4,1.7458]
[1753579273045,1.03795,3770.5,3770.4,1.7458]
[1753579273244,21.8557,3770.5,3770.4,1.7458]
[1753579273549,3.5093,3770.7,3770.4,0.6875]
[1753579273751,21.348,3770.5,3770.4,1.21775]
[1753579273943,21.348,3770.5,3770.4,1.21776]
[1753579274140,21.8557,3770.5,3770.4,1.4362]
[1753579274442,22.38595,3770.5,3770.4,1.7458]
[1753579275145,22.39005,3770.5,3770.4,0.4952]
[1753579275449,0.73774,3769.8,3769.7,1.4492]
[1753579275749,22.38634,3769.8,3769.7,1.4492]
[1753579275945,22.38634,3769.8,3769.7,1.7458]
[1753579276247,22.38404,3769.8,3769.7,1.7458]
[1753579276748,3.7381,3770.1,3770.0,0.6875]
[1753579277046,25.5959,3770.1,3770.0,1.2315]
[1753579277245,25.5959,3770.1,3770.0,0.7794]
[1753579277445,25.5959,3770.1,3770.0,0.2966]
[1753579277642,1.0422,3769.4,3769.3,1.2937]
[1753579277853,22.3872,3769.4,3769.3,1.2937]
[1753579278150,22.3872,3769.4,3769.3,1.7458]
[1753579278348,22.3872,3769.4,3769.3,0.4952]
[1753579278846,22.3872,3769.4,3769.3,0.7794]
[1753579279045,22.3872,3769.4,3769.3,1.2315]
[1753579279747,22.3872,3769.4,3769.3,1.4362]
[1753579280049,22.3872,3769.4,3769.3,1.7458]
[1753579280455,22.3872,3769.4,3769.3,1.4362]
[1753579280754,22.3872,3769.4,3769.3,0.7794]
[1753579281151,22.3872,3769.4,3769.3,0.4952]
[1753579281554,22.3872,3769.4,3769.3,0.2966]
[1753579282748,22.3872,3769.4,3769.3,0.7794]
[1753579282956,22.3872,3769.4,3769.3,1.7458]
[1753579283657,1.0422,3769.4,3769.3,1.7458]
[1753579283958,22.3854,3769.4,3769.3,1.7458]